fUST/lending_fUST_20260112
["ID","MTS","AMOUNT","RATE_DAILY","PERIOD"]
[401352064,1768150560322,-151.0,0.00047,120]
[401352065,1768150560362,-1000.0,0.00047,120]
[401352066,1768150560401,-5000.0,0.00047,120]
[401352067,1768150560442,-13715.64232986,0.00047,120]
[401352068,1768150560479,-232.53,0.0004741,120]
[401352069,1768150560516,-102612.1018,0.00047444,30]
[401352070,1768150560552,-500.0,0.000475,120]
[401352071,1768150560589,-2000.0,0.000479,120]
[401352072,1768150560627,-300.0,0.00048,120]
[401352073,1768150560663,-3000.0,0.00048,60]
[401352074,1768150560698,-1400.0,0.00048,120]
[401352075,1768150560734,-151.0,0.00048,120]
[401352076,1768150560768,-375.83982642,0.00048,120]
[401352077,1768150560803,-2433.16401589,0.00048,120]
[401352078,1768150560838,-5000.0,0.00048,90]
[401352079,1768150560872,-4338.83145916,0.00048,30]
[401352080,1768150560912,-6633.0,0.00048,120]
[401352081,1768150560950,-40972.0,0.00048,120]
[401352082,1768150560984,-2642.98,0.000482,120]
[401352083,1768150561018,-4684.97307491,0.00048398,120]
[401352084,1768150561051,-22094.0837143,0.000484,40]
[401352085,1768150561084,-250.81313961,0.0004842,120]
[401352086,1768150561118,-700.0,0.000485,120]
[401352087,1768150561153,-3666.04,0.00048794,82]
[401352088,1768150561186,-10000.0,0.000488,120]
[401352089,1768150561219,-257588.69754178,0.000488,120]
[401352090,1768150573485,-151.0,0.0003113,31]
[401352091,1768150573521,-151.000056,0.0003113,31]
[401352092,1768150573556,-267.811016,0.0003113,31]
[401352093,1768150573590,-267.811016,0.0003113,31]
[401352094,1768150573625,-267.811016,0.0003113,31]
[401352095,1768150573661,-327.769133,0.0003113,31]
[401352096,1768150573700,-327.769133,0.0003113,31]
[401352097,1768150573739,-410.286252,0.0003113,31]
[401352098,1768150573773,-267.811016,0.0003113,31]
[401352099,1768150573811,-327.769133,0.0003113,31]
[401352100,1768150573845,-410.286252,0.0003113,31]
[401352101,1768150573879,-327.769133,0.0003113,31]
[401352102,1768150573916,-410.286252,0.0003113,31]
[401352103,1768150573951,-410.286252,0.0003113,31]
[401352104,1768150573984,-151.0,0.0003113,31]
[401352105,1768150574039,-151.0,0.0003322,31]
[401352106,1768150574074,-267.811016,0.0003322,31]
[401352107,1768150574106,-267.811016,0.0003322,31]
[401352108,1768150574138,-267.811016,0.0003322,31]
[401352109,1768150574171,-327.769133,0.0003322,31]
[401352110,1768150574204,-327.769133,0.0003322,31]
[401352111,1768150574236,-410.286252,0.0003322,31]
[401352112,1768150574270,-267.811016,0.0003322,31]
[401352113,1768150574304,-327.769133,0.0003322,31]
[401352114,1768150574338,-410.286252,0.0003322,31]
[401352115,1768150574373,-327.769133,0.0003322,31]
[401352116,1768150574408,-410.286252,0.0003322,31]
[401352117,1768150574444,-410.286252,0.0003322,31]
[401352118,1768150574479,-151.0,0.0003322,31]
[401352119,1768150574519,-151.0,0.00036462,31]
[401352120,1768150574552,-267.811016,0.00036462,31]
[401352121,1768150574584,-267.811016,0.00036462,31]
[401352122,1768150574616,-267.811016,0.00036462,31]
[401352123,1768150574650,-327.769133,0.00036462,31]
[401352124,1768150574681,-327.769133,0.00036462,31]
[401352125,1768150574712,-410.286252,0.00036462,31]
[401352126,1768150574742,-267.811016,0.00036462,31]
[401352127,1768150574772,-327.769133,0.00036462,31]
[401352128,1768150574802,-410.286252,0.00036462,31]
[401352129,1768150574834,-327.769133,0.00036462,31]
[401352130,1768150574867,-410.286252,0.00036462,31]
[401352131,1768150574898,-410.286252,0.00036462,31]
[401352132,1768150574936,-222.603614,0.00036728,31]
[401352133,1768150574967,-267.811016,0.00036728,31]
[401352134,1768150575001,-267.811016,0.00036728,31]
[401352135,1768150575032,-267.811016,0.00036728,31]
[401352136,1768150575062,-267.811016,0.00036728,31]
[401352137,1768150575094,-327.769133,0.00036728,31]
[401352138,1768150575127,-327.769133,0.00036728,31]
[401352139,1768150575247,-267.811016,0.00036728,31]
[401352140,1768150575288,-267.811016,0.00036728,31]
[401352141,1768150575325,-327.769133,0.00036728,31]
[401352142,1768150575361,-410.286252,0.00036728,31]
[401352143,1768150575396,-267.811016,0.00036728,31]
[401352144,1768150575432,-327.769133,0.00036728,31]
[401352145,1768150575468,-410.286252,0.00036728,31]
[401352146,1768150575501,-267.811019,0.00036728,31]
[401352147,1768150575534,-327.769133,0.00036728,31]
[401352148,1768150575567,-410.286252,0.00036728,31]
[401352149,1768150575601,-327.769133,0.00036728,31]
[401352150,1768150575635,-410.286252,0.00036728,31]
[401352151,1768150575668,-327.769133,0.00036728,31]
[401352152,1768150575701,-410.286252,0.00036728,31]
[401352153,1768150575735,-327.769125,0.00036728,31]
[401352154,1768150575768,-410.286252,0.00036728,31]
[401352155,1768150575801,-410.286252,0.00036728,31]
[401352156,1768150575834,-410.286244,0.00036728,31]
[401352157,1768150575876,-1957.856,0.00037103,30]
[401352158,1768150575915,-1888.0,0.00037107,31]
[401352159,1768150575960,-243363.56248039,0.000488,120]
[401352160,1768150575996,-20000.0,0.000488,120]
[401352161,1768150576031,-431.088,0.0004887,85]
[401352162,1768150576065,-600069.39457003,0.00048889,120]
[401352163,1768150576099,-200.0,0.000489,120]
[401352164,1768150576132,-1853726.49975996,0.000489,120]
[401352165,1768150576165,-2000.0,0.000489,120]
[401352166,1768150576200,-1000.0,0.00048999,120]
[401352167,1768150576234,-2157.0,0.00049,120]
[401352168,1768150576267,-10000.0,0.00049,120]
[401352169,1768150576302,-3000.0,0.00049,120]
[401352170,1768150576340,-151.0,0.00049,120]
[401352171,1768150576374,-2059.31888882,0.00049,120]
[401352172,1768150576409,-18752.6005067,0.00049,120]
[401352173,1768150576442,-5655.98656571,0.00049211,120]
[401352174,1768150576480,-1000.0,0.00049315,120]
[401352175,1768150576519,-2490.28813322,0.0004943,120]
[401352176,1768150576552,-1700820.6155,0.00049444,30]
[401352177,1768150576585,-700.0,0.000495,120]
[401352178,1768150576618,-10000.0,0.000495,120]
[401352179,1768150576651,-1000.0,0.00049589,120]
[401352180,1768150576684,-5000.0,0.000498,120]
[401352181,1768150576716,-1000.0,0.00049863,120]
[401352182,1768150576747,-5000.0,0.000499,120]
[401352183,1768150576779,-2000.0,0.000499,120]
[401352184,1768150576812,-30324.69888981,0.00049998,120]
[401352185,1768150576845,-27434.40164418,0.0005,120]
[401352186,1768150576878,-556.04616435,0.0005,120]
[401352187,1768150576914,-780.2446777,0.0005,120]
[401352188,1768150576951,-300.0,0.0005,120]
[401352189,1768150576983,-5000.0,0.0005,120]
[401352190,1768150577019,-1000.0,0.0005,120]
[401352191,1768150577054,-40146.8414208,0.0005,60]
[401352192,1768150577092,-4000.0,0.0005,120]
[401352193,1768150577126,-2000.0,0.0005,120]
[401352194,1768150577162,-306351.28500711,0.0005,120]
[401352195,1768150577199,-2498.42352988,0.0005,120]
[401352196,1768150577236,-14376.48611726,0.0005,120]
[401352197,1768150577274,-1600.0,0.0005,120]
[401352198,1768150577315,-151.0,0.0005,120]
[401352199,1768150577352,-3403.9831406,0.0005,120]
[401352200,1768150577387,-850.30685835,0.0005,120]
[401352201,1768150577422,-4480.0,0.0005,90]
[401352202,1768150577455,-19399.76983293,0.0005,120]
[401352203,1768150577489,-18677.3706352,0.0005,120]
[401352204,1768150581829,-821.451469,0.0003113,31]
[401352205,1768150581864,-821.451469,0.0003113,31]
[401352206,1768150581899,-821.451469,0.0003113,31]
[401352207,1768150581939,-821.451469,0.0003113,31]
[401352208,1768150581981,-500.0,0.00032623,30]
[401352209,1768150582014,-500.0,0.00032623,30]
[401352210,1768150582047,-500.0,0.00032623,30]
[401352211,1768150582080,-500.0,0.00032623,30]
[401352212,1768150582114,-500.0,0.00032623,30]
[401352213,1768150582148,-500.0,0.00032623,30]
[401352214,1768150582182,-500.0,0.00032623,30]
[401352215,1768150582216,-500.0,0.00032623,30]
[401352216,1768150582249,-500.0,0.00032623,30]
[401352217,1768150582282,-500.0,0.00032623,30]
[401352218,1768150582315,-500.0,0.00032623,30]
[401352219,1768150582348,-500.0,0.00032623,30]
[401352220,1768150582382,-500.0,0.00032623,30]
[401352221,1768150582415,-500.0,0.00032623,30]
[401352222,1768150582448,-500.0,0.00032623,30]
[401352223,1768150582481,-500.0,0.00032623,30]
[401352224,1768150582536,-821.451469,0.0003322,31]
[401352225,1768150582570,-821.451469,0.0003322,31]
[401352226,1768150582602,-821.451469,0.0003322,31]
[401352227,1768150582638,-821.451469,0.0003322,31]
[401352228,1768150582679,-821.451469,0.00036462,31]
[401352229,1768150582712,-821.451469,0.00036462,31]
[401352230,1768150582746,-821.451469,0.00036462,31]
[401352231,1768150582779,-821.451469,0.00036462,31]
[401352232,1768150582812,-821.451469,0.00036728,31]
[401352233,1768150582845,-821.451469,0.00036728,31]
[401352234,1768150582878,-821.451469,0.00036728,31]
[401352235,1768150582917,-821.451469,0.00036728,31]
[401352236,1768150582949,-821.451469,0.00036728,31]
[401352237,1768150582985,-821.451469,0.00036728,31]
[401352238,1768150583019,-821.451469,0.00036728,31]
[401352239,1768150583053,-821.451471,0.00036728,31]
[401352240,1768150583100,-93542.43335038,0.0005,120]
[401352241,1768150583138,-22275.96055695,0.0005,30]
[401352242,1768150583178,-118390.39391299,0.0005,120]
[401352243,1768150583218,-41005.28606896,0.0005,120]
[401352244,1768150583256,-97437.06798233,0.0005,120]
[401352245,1768150583295,-16720.86581058,0.0005,120]
[401352246,1768150583332,-8920.6,0.0005,120]
[401352247,1768150583369,-6182.84760869,0.0005,60]
[401352248,1768150583412,-2500.0,0.0005,120]
[401352249,1768150583453,-151.0,0.0005,120]
[401352250,1768150583495,-8000.0,0.0005,45]
[401352251,1768150583533,-310.92058591,0.0005,120]
[401352252,1768150583571,-192.96098518,0.0005,120]
[401352253,1768150583702,-100000.0,0.0005,120]
[401352254,1768150583744,-2274.999999,0.0005,120]
[401352255,1768150583783,-1215.0,0.0005,30]
[401352256,1768150583821,-1175.04575596,0.0005,120]
[401352257,1768150583860,-858.31855061,0.0005,120]
[401352258,1768150583897,-1823.62075189,0.0005,120]
[401352259,1768150583936,-164.0,0.0005,120]
[401352260,1768150583976,-1000.0,0.00050136,120]
[401352261,1768150584013,-1081.03641745,0.0005041,120]
[401352262,1768150584049,-3125.0,0.00050411,120]
[401352263,1768150584085,-700.0,0.000505,120]
[401352264,1768150584121,-10290.733966,0.000505,120]
[401352265,1768150584157,-151.0,0.000505,120]
[401352266,1768150584192,-46780.73212625,0.0005051,120]
[401352267,1768150584229,-2000.0,0.000509,120]
[401352268,1768150584265,-100000.0,0.000509,120]
[401352269,1768150584300,-98189.68,0.000509,120]
[401352270,1768150584337,-1000.0,0.00050999,120]
[401352271,1768150584372,-1700.0,0.00051,120]
[401352272,1768150584410,-1000.0,0.00051,120]
[401352273,1768150584449,-1100.0,0.00051,30]
[401352274,1768150584485,-151.0,0.00051,120]
[401352275,1768150584521,-5000.0,0.00051,70]
[401352276,1768150584561,-151.0,0.00051,120]
[401352277,1768150584600,-858.31855061,0.00051,120]
[401352278,1768150584639,-3000.0,0.00051,85]
[401352279,1768150584678,-3000.0,0.0005101,85]
[401352280,1768150584718,-3000.0,0.0005102,85]
[401352281,1768150584755,-3000.0,0.0005103,85]
[401352282,1768150584793,-3000.0,0.0005104,85]
[401352283,1768150584832,-3000.0,0.0005105,85]
[401352284,1768150584868,-3000.0,0.0005106,85]
[401352285,1768150584908,-5817.152057,0.0005107,85]
[401352286,1768150584948,-700.0,0.000515,120]
[401352287,1768150584985,-151.0,0.000515,120]
[401352288,1768150585022,-191554.09998888,0.00051819,120]
[401352289,1768150585060,-238103.9978562,0.00051894,120]
[401352290,1768150585094,-100000.0,0.000519,120]
[401352291,1768150585128,-2000.0,0.000519,120]
[401352292,1768150585162,-100000.0,0.000519,120]
[401352293,1768150585196,-475.0,0.00051945,120]
[401352294,1768150585235,-200.0,0.00051975,120]
[401352295,1768150585274,-200.0,0.00051975,120]
[401352296,1768150585309,-200.0,0.00051975,120]
[401352297,1768150585346,-1800.0,0.00052,120]
[401352298,1768150585380,-253.0,0.00052,120]
[401352299,1768150585416,-200.0,0.00052,120]
[401352300,1768150585451,-1000.0,0.00052,120]
[401352301,1768150585485,-1000.0,0.00052,120]
[401352302,1768150585521,-106798.67437303,0.00052,120]
[401352303,1768150585555,-151.0,0.00052,120]
[401352304,1768150585589,-68294.7799133,0.00052,120]
[401352305,1768150585623,-396188.39888634,0.00052,120]
[401352306,1768150585657,-151.0,0.00052,120]
[401352307,1768150585691,-5999.99999901,0.00052,30]
[401352308,1768150585724,-22507.0,0.00052,120]
[401352309,1768150585757,-858.31855061,0.00052,120]
[401352310,1768150585790,-3180.59,0.00052,30]
[401352311,1768150585822,-475.0,0.00052054,120]
[401352312,1768150585853,-475.0,0.00052054,120]
[401352313,1768150585887,-1830.41,0.00052054,120]
[401352314,1768150585921,-1830.41,0.00052054,120]
[401352315,1768150585957,-1830.41,0.00052054,120]
[401352316,1768150585991,-1830.41,0.00052054,120]
[401352317,1768150586024,-1830.41,0.00052054,120]
[401352318,1768150586147,-1830.41,0.00052054,120]
[401352319,1768150586185,-1830.41,0.00052054,120]
[401352320,1768150586223,-1830.41,0.00052054,120]
[401352321,1768150586259,-1830.41,0.00052054,120]
[401352322,1768150586297,-1830.41,0.00052054,120]
[401352323,1768150586334,-1830.41,0.00052054,120]
[401352324,1768150586372,-1830.41,0.00052054,120]
[401352325,1768150586410,-1830.41,0.00052054,120]
[401352326,1768150586447,-1830.41,0.00052054,120]
[401352327,1768150586490,-1830.41,0.00052054,120]
[401352328,1768150586530,-1830.41,0.00052054,120]
[401352329,1768150586567,-1830.41,0.00052054,120]
[401352330,1768150586603,-1830.41,0.00052054,120]
[401352331,1768150586639,-1830.41,0.00052054,120]
[401352332,1768150586674,-1830.41,0.00052054,120]
[401352333,1768150586708,-1830.41,0.00052054,120]
[401352334,1768150586742,-1830.41,0.00052054,120]
[401352335,1768150586776,-1830.41,0.00052054,120]
[401352336,1768150586810,-1830.62653164,0.00052054,120]
[401352337,1768150586847,-2000.0,0.00052054,120]
[401352338,1768150586882,-12088.58566199,0.000525,120]
[401352339,1768150586918,-3000.0,0.000525,120]
[401352340,1768150586958,-475.0,0.000525,120]
[401352341,1768150586999,-475.0,0.000525,120]
[401352342,1768150587041,-151.0,0.000525,120]
[401352343,1768150587077,-100000.0,0.000529,120]
[401352344,1768150587112,-2000.0,0.000529,120]
[401352345,1768150587146,-475.0,0.00053,120]
[401352346,1768150587181,-1000.0,0.00053,120]
[401352347,1768150587217,-10000.0,0.00053,120]
[401352348,1768150587254,-199589.9973657,0.00053,120]
[401352349,1768150587290,-121157.70448301,0.00053,120]
[401352350,1768150587327,-1900.0,0.00053,120]
[401352351,1768150587365,-1000.0,0.00053,120]
[401352352,1768150587402,-151.54827309,0.00053,120]
[401352353,1768150587439,-9999.999999,0.00053,120]
[401352354,1768150587475,-1436.15066812,0.00053,120]
[401352355,1768150587510,-858.31855061,0.00053,120]
[401352356,1768150587545,-151.0,0.000531,120]
[401352357,1768150587581,-2000.0,0.00053424,120]
[401352358,1768150587618,-700.0,0.000535,120]
[401352359,1768150587656,-80341.53998432,0.000535,60]
[401352360,1768150587692,-151.0,0.000536,120]
[401352361,1768150587729,-98148.78716023,0.000538,120]
[401352362,1768150587766,-475.0,0.00053836,120]
[401352363,1768150587803,-8417.98247826,0.0005388,30]
[401352364,1768150587838,-100000.0,0.000539,120]
[401352365,1768150587876,-100000.0,0.000539,120]
[401352366,1768150587914,-2000.0,0.000539,120]
[401352367,1768150587950,-688.68627033,0.00054,120]
[401352368,1768150587986,-200.0,0.00054,120]
[401352369,1768150588021,-2154.4838396,0.00054,120]
[401352370,1768150588056,-1000.0,0.00054,120]
[401352371,1768150588090,-112376.82685755,0.00054,120]
[401352372,1768150588123,-20000.0,0.00054,60]
[401352373,1768150588158,-2000.0,0.00054,120]
[401352374,1768150588191,-17474.5744084,0.00054,120]
[401352375,1768150588224,-85351.26026628,0.00054,120]
[401352376,1768150588258,-876.915,0.00054,60]
[401352377,1768150588292,-858.31855061,0.00054,120]
[401352378,1768150588328,-151.0,0.000541,120]
[401352379,1768150588364,-83138.08696371,0.000542,120]
[401352380,1768150588483,-19865.46954559,0.00054359,120]
[401352381,1768150588525,-475.0,0.00054362,120]
[401352382,1768150588564,-1000.0,0.00054443,120]
[401352383,1768150588601,-1656732.84315585,0.00054444,30]
[401352384,1768150699101,234.788188,7.275e-05,2]
[401352385,1768150804586,2048.49,5e-05,2]
[401352386,1768150805176,937.8721658,5.5e-05,2]
[401352387,1768150805199,1110.6178342,5.5e-05,2]
[401352388,1768150805738,2048.49,6e-05,2]
[401352389,1768150806319,2048.49,6.5e-05,2]
[401352390,1768150806893,2048.49,7.1e-05,2]
[401352391,1768150807469,2048.49,7.6e-05,2]
[401352399,1768151081403,976.53,0.00030137,120]
[401352400,1768151089589,363.63908196,0.00027397,120]
[401352402,1768151103136,151.0,0.00030137,120]
[401352403,1768151103169,219.57265454,0.00030137,120]
[401352405,1768151215512,695.4321658,7.217e-05,2]
[401352406,1768151215533,5110.4826162,7.217e-05,2]
[401352417,1768151280503,778.18,7.712e-05,2]
[401352418,1768151280774,778.18,7.712e-05,2]
[401352420,1768151310331,151.0,0.00030137,120]
[401352421,1768151319251,-2048.49,8.1e-05,2]
[401352422,1768151336501,-391.08794395,8.115e-05,2]
[401352423,1768151345671,196.07,6.036e-05,2]
[401352424,1768151346091,261.43,6.298e-05,2]
[401352425,1768151346499,326.79,6.56e-05,2]
[401352426,1768151346970,392.15,6.823e-05,2]
[401352427,1768151347379,457.5,7.085e-05,2]
[401352428,1768151348291,522.86,7.348e-05,2]
[401352429,1768151348735,588.22,7.61e-05,2]
[401352430,1768151349165,653.58,7.873e-05,2]
[401352432,1768151357067,-300.0,8.158e-05,2]
[401352434,1768151362419,9400.01,8.06e-05,2]
[401352435,1768151362447,10000.01,8.06e-05,2]
[401352436,1768151362473,10000.01,8.06e-05,2]
[401352437,1768151362511,10000.01,8.06e-05,2]
[401352438,1768151362536,10000.01,8.06e-05,2]
[401352439,1768151362712,10000.01,8.06e-05,2]
[401352440,1768151362738,10000.01,8.06e-05,2]
[401352441,1768151362762,10000.01,8.06e-05,2]
[401352442,1768151362787,10000.01,8.06e-05,2]
[401352444,1768151364792,151.0,0.00030137,120]
[401352458,1768151404681,159.57,5e-05,2]
[401352459,1768151419337,-159.57,7.1e-05,2]
[401352460,1768151420341,154.72,7.071e-05,2]
[401352481,1768151432240,-176.82,7.333e-05,2]
[401352482,1768151432250,-198.92,7.594e-05,2]
[401352483,1768151432259,-221.03,7.856e-05,2]
[401352484,1768151432268,-300.0,8.059e-05,2]
[401352485,1768151432277,-300.0,8.059e-05,2]
[401352486,1768151432286,-300.0,8.059e-05,2]
[401352487,1768151432296,-533.0,8.059e-05,2]
[401352488,1768151432305,-725.0,8.059e-05,2]
[401352489,1768151432315,-58447.88556585,8.06e-05,2]
[401352490,1768151432325,-46733.15497833,8.159e-05,2]
[401352491,1768151432337,-1000.0,8.159e-05,2]
[401352492,1768151438303,-1531.28253876,8.159e-05,2]
[401352493,1768151438315,-735.56248291,8.159e-05,2]
[401352494,1768151438325,-500.0,8.159e-05,2]
[401352495,1768151438335,-500.0,8.159e-05,2]
[401352496,1768151438345,-500.0,8.159e-05,2]
[401352497,1768151438355,-500.0,8.159e-05,2]
[401352498,1768151438365,-83.36913257,8.159e-05,2]
[401352499,1768151438377,-416.63086743,8.159e-05,2]
[401352500,1768151438388,-500.0,8.159e-05,2]
[401352501,1768151438398,-500.0,8.159e-05,2]
[401352502,1768151438408,-580.6700255,8.159e-05,2]
[401352503,1768151438418,-500.0,8.159e-05,2]
[401352504,1768151438428,-500.0,8.159e-05,2]
[401352505,1768151438439,-581.79014473,8.159e-05,2]
[401352506,1768151438448,-500.0,8.159e-05,2]
[401352507,1768151438458,-500.0,8.159e-05,2]
[401352508,1768151438468,-500.0,8.159e-05,2]
[401352509,1768151438478,-378.32904791,8.159e-05,2]
[401352510,1768151438488,-500.0,8.159e-05,2]
[401352511,1768151438498,-500.0,8.159e-05,2]
[401352512,1768151438508,-500.0,8.159e-05,2]
[401352513,1768151438517,-500.0,8.159e-05,2]
[401352514,1768151438527,-500.0,8.159e-05,2]
[401352515,1768151438537,-500.0,8.159e-05,2]
[401352516,1768151438546,-500.0,8.159e-05,2]
[401352517,1768151438556,-500.0,8.159e-05,2]
[401352519,1768151438566,-500.0,8.159e-05,2]
[401352521,1768151438576,-500.0,8.159e-05,2]
[401352523,1768151438586,-500.0,8.159e-05,2]
[401352525,1768151438596,-621.77544274,8.159e-05,2]
[401352527,1768151438606,-500.0,8.159e-05,2]
[401352529,1768151438616,-500.0,8.159e-05,2]
[401352531,1768151438625,-500.0,8.159e-05,2]
[401352533,1768151438635,-500.0,8.159e-05,2]
[401352535,1768151438644,-500.0,8.159e-05,2]
[401352537,1768151438653,-500.0,8.159e-05,2]
[401352539,1768151438663,-200.0,8.159e-05,2]
[401352541,1768151438672,-500.0,8.159e-05,2]
[401352543,1768151438682,-500.0,8.159e-05,2]
[401352545,1768151438691,-492.83106623,8.159e-05,2]
[401352547,1768151438700,-500.0,8.159e-05,2]
[401352549,1768151438709,-500.0,8.161e-05,2]
[401352551,1768151438718,-500.0,8.161e-05,2]
[401352552,1768151438728,-500.0,8.161e-05,2]
[401352555,1768151438737,-500.0,8.161e-05,2]
[401352556,1768151438747,-500.0,8.161e-05,2]
[401352558,1768151438757,-500.0,8.161e-05,2]
[401352561,1768151438766,-500.0,8.161e-05,2]
[401352562,1768151438776,-500.0,8.161e-05,2]
[401352564,1768151438785,-500.0,8.161e-05,2]
[401352566,1768151438794,-500.0,8.161e-05,2]
[401352568,1768151438803,-500.0,8.161e-05,2]
[401352570,1768151438812,-500.0,8.161e-05,2]
[401352572,1768151438822,-500.0,8.161e-05,2]
[401352574,1768151438831,-500.0,8.161e-05,2]
[401352576,1768151438840,-500.0,8.162e-05,2]
[401352578,1768151438851,-500.0,8.162e-05,2]
[401352580,1768151438860,-500.0,8.162e-05,2]
[401352583,1768151438872,-500.0,8.162e-05,2]
[401352585,1768151438882,-500.0,8.162e-05,2]
[401352586,1768151438891,-500.0,8.162e-05,2]
[401352589,1768151438902,-500.0,8.162e-05,2]
[401352590,1768151438911,-500.0,8.162e-05,2]
[401352592,1768151438920,-500.0,8.162e-05,2]
[401352594,1768151438931,-500.0,8.162e-05,2]
[401352597,1768151438946,-500.0,8.162e-05,2]
[401352599,1768151438957,-500.0,8.162e-05,2]
[401352600,1768151438967,-500.0,8.162e-05,2]
[401352602,1768151438978,-500.0,8.162e-05,2]
[401352604,1768151438987,-500.0,8.162e-05,2]
[401352607,1768151439001,-500.0,8.162e-05,2]
[401352609,1768151439010,-293.91500281,8.162e-05,2]
[401352611,1768151439020,-500.0,8.162e-05,2]
[401352613,1768151439030,-500.0,8.162e-05,2]
[401352615,1768151439043,-2024.45232366,8.162e-05,2]
[401352617,1768151439053,-2024.45232366,8.162e-05,2]
[401352619,1768151439062,-2024.45232366,8.162e-05,2]
[401352621,1768151439073,-2024.45232366,8.162e-05,2]
[401352623,1768151439083,-2024.45232366,8.162e-05,2]
[401352625,1768151439093,-2024.45232366,8.162e-05,2]
[401352627,1768151439111,-2024.45232366,8.162e-05,2]
[401352629,1768151439120,-2024.45232366,8.162e-05,2]
[401352631,1768151439130,-2024.45232366,8.162e-05,2]
[401352633,1768151439140,-297.9849847,8.162e-05,2]
[401352635,1768151439149,-7939.09475922,8.162e-05,2]
[401352637,1768151439159,-7939.09475922,8.162e-05,2]
[401352639,1768151439169,-7939.09475922,8.162e-05,2]
[401352641,1768151439180,-447.30043471,8.219e-05,2]
[401352643,1768151439190,-313.1103043,8.219e-05,2]
[401352645,1768151439204,-300.0,8.325e-05,2]
[401352647,1768151439215,-300.0,8.325e-05,2]
[401352649,1768151439225,-300.0,8.325e-05,2]
[401352651,1768151439234,-300.0,8.325e-05,2]
[401352653,1768151439244,-300.0,8.325e-05,2]
[401352655,1768151439254,-300.0,8.325e-05,2]
[401352657,1768151439263,-300.0,8.325e-05,2]
[401352659,1768151439272,-300.0,8.325e-05,2]
[401352661,1768151439281,-300.0,8.325e-05,2]
[401352663,1768151439290,-300.0,8.325e-05,2]
[401352665,1768151439299,-300.0,8.325e-05,2]
[401352667,1768151439308,-300.0,8.325e-05,2]
[401352669,1768151439317,-300.0,8.325e-05,2]
[401352671,1768151439327,-300.0,8.325e-05,2]
[401352673,1768151439336,-300.0,8.325e-05,2]
[401352675,1768151439345,-600.0,8.325e-05,2]
[401352677,1768151439355,-2048.49,8.6e-05,2]
[401352679,1768151439364,-420.0,8.865e-05,2]
[401352681,1768151439373,-2165.13791089,9.037e-05,2]
[401352683,1768151439382,-2048.49,9.1e-05,2]
[401352685,1768151439392,-720.0,9.157e-05,2]
[401352687,1768151439402,-159.57,9.2e-05,2]
[401352689,1768151439411,-2048.49,9.6e-05,2]
[401352691,1768151439420,-587.0,9.751e-05,2]
[401352693,1768151439430,-1155.86,0.0001,2]
[401352695,1768151439439,-5290.76752156,0.0001,2]
[401352697,1768151439449,-864.0,0.00010073,2]
[401352699,1768151439458,-1155.86,0.000101,2]
[401352701,1768151439468,-353.66,0.000101,2]
[401352703,1768151439477,-353.66,0.000101,2]
[401352705,1768151439488,-353.66,0.000101,2]
[401352707,1768151439497,-353.66,0.000101,2]
[401352709,1768151439507,-353.66,0.000101,2]
[401352711,1768151439516,-353.66,0.000101,2]
[401352713,1768151439525,-353.65,0.000101,2]
[401352715,1768151439534,-2048.49,0.000101,2]
[401352717,1768151439543,-461.48377386,0.00010115,2]
[401352719,1768151439553,-1155.86,0.000102,2]
[401352721,1768151439563,-1155.86,0.000104,2]